[Event "Titled Tuesday Blitz January 31 Late 2023"]
[White "Tworuszka, Michal"]
[Black "Gutkin, Ilya"]
[WhiteFideId "1117858"]
[BlackFideId "16203470"]
[WhiteElo "2260"]
[BlackElo "2273"]
[Result "1-0"]
[Round "07"]
[TimeControl "180+2"]
[Date "2023.01.31"]
[WhiteClock "0:00:25"]
[BlackClock "0:00:15"]

1. d4 {[%clk 0:03:00]}  e6 {[%clk 0:02:59]} 2. e4 {[%clk 0:03:00]}  d5 {[%clk 0:02:59]} 3. Nd2 {[%clk 0:03:00]}  c5 {[%clk 0:02:59]} 4. Ngf3 {[%clk 0:02:59]}  cxd4 {[%clk 0:02:59]} 5. exd5 {[%clk 0:02:59]}  Qxd5 {[%clk 0:03:00]} 6. Bc4 {[%clk 0:02:59]}  Qd6 {[%clk 0:02:57]} 7. Qe2 {[%clk 0:02:56]}  Nf6 {[%clk 0:02:55]} 8. Nb3 {[%clk 0:02:56]}  Nc6 {[%clk 0:02:54]} 9. Bg5 {[%clk 0:02:56]}  h6 {[%clk 0:02:32]} 10. Bxf6 {[%clk 0:02:55]}  gxf6 {[%clk 0:02:33]} 11. O-O-O {[%clk 0:02:55]}  Qc7 {[%clk 0:02:08]} 12. Nbxd4 {[%clk 0:02:51]}  Nxd4 {[%clk 0:02:03]} 13. Nxd4 {[%clk 0:02:51]}  a6 {[%clk 0:02:03]} 14. Kb1 {[%clk 0:02:28]}  Bd7 {[%clk 0:01:51]} 15. Nxe6 {[%clk 0:02:07]}  fxe6 {[%clk 0:01:46]} 16. Qh5+ {[%clk 0:01:58]}  Ke7 {[%clk 0:01:38]} 17. Rd4 {[%clk 0:01:18]}  Qe5 {[%clk 0:01:14]} 18. Rxd7+ {[%clk 0:01:13]}  Kxd7 {[%clk 0:01:08]} 19. Qf7+ {[%clk 0:01:06]}  Kc6 {[%clk 0:01:04]} 20. Rd1 {[%clk 0:00:43]}  Bd6 {[%clk 0:00:59]} 21. Bxe6 {[%clk 0:00:42]}  Rad8 {[%clk 0:00:54]} 22. Bd5+ {[%clk 0:00:41]}  Kc5 {[%clk 0:00:45]} 23. Qxb7 {[%clk 0:00:34]}  Qxb2+ {[%clk 0:00:18]} 24. Qxb2 {[%clk 0:00:30]}  Rb8 {[%clk 0:00:19]} 25. Bb3 {[%clk 0:00:31]}  Be5 {[%clk 0:00:19]} 26. Qa3+ {[%clk 0:00:30]}  Kc6 {[%clk 0:00:17]} 27. Qxa6+ {[%clk 0:00:29]}  Rb6 {[%clk 0:00:17]} 28. Qa4+ {[%clk 0:00:26]}  Kc5 {[%clk 0:00:15]} 29. Qc4# {[%clk 0:00:25]} 1-0


[Site "https://www.chess.com"]

[Event "Titled Tuesday Blitz January 31 Late 2023"]
[White "Musovic, Armin"]
[Black "Goltsev, Dmitry"]
[WhiteFideId "939935"]
[BlackFideId "24176710"]
[WhiteElo "2261"]
[BlackElo "2269"]
[Result "1/2-1/2"]
[Round "07"]
[TimeControl "180+2"]
[Date "2023.01.31"]
[WhiteClock "0:00:06"]
[BlackClock "0:00:16"]

1. e4 {[%clk 0:02:56]}  e6 {[%clk 0:02:57]} 2. d4 {[%clk 0:02:55]}  d5 {[%clk 0:02:58]} 3. Nd2 {[%clk 0:02:55]}  c5 {[%clk 0:02:57]} 4. Ngf3 {[%clk 0:02:55]}  Nf6 {[%clk 0:02:57]} 5. e5 {[%clk 0:02:55]}  Ne4 {[%clk 0:02:57]} 6. c3 {[%clk 0:02:55]}  cxd4 {[%clk 0:02:57]} 7. Nxd4 {[%clk 0:02:55]}  Nc6 {[%clk 0:02:57]} 8. N2f3 {[%clk 0:02:54]}  Bc5 {[%clk 0:02:54]} 9. Bd3 {[%clk 0:02:53]}  Qb6 {[%clk 0:02:54]} 10. O-O {[%clk 0:02:48]}  O-O {[%clk 0:02:52]} 11. Bc2 {[%clk 0:02:35]}  Rd8 {[%clk 0:02:50]} 12. a3 {[%clk 0:02:25]}  a5 {[%clk 0:02:46]} 13. h4 {[%clk 0:02:24]}  h6 {[%clk 0:02:39]} 14. Qd3 {[%clk 0:02:18]}  Bd7 {[%clk 0:02:35]} 15. Be3 {[%clk 0:02:12]}  Rac8 {[%clk 0:02:27]} 16. b4 {[%clk 0:02:11]}  axb4 {[%clk 0:02:23]} 17. axb4 {[%clk 0:02:12]}  Bxb4 {[%clk 0:02:23]} 18. Nxe6 {[%clk 0:01:56]}  Bc5 {[%clk 0:02:23]} 19. Bxc5 {[%clk 0:01:51]}  Qb2 {[%clk 0:02:21]} 20. Nxd8 {[%clk 0:01:43]}  Nxd8 {[%clk 0:02:22]} 21. Bd4 {[%clk 0:01:41]}  Bb5 {[%clk 0:02:18]} 22. Rfb1 {[%clk 0:01:36]}  Qxb1+ {[%clk 0:02:18]} 23. Rxb1 {[%clk 0:01:35]}  Bxd3 {[%clk 0:02:19]} 24. Bxd3 {[%clk 0:01:36]}  Nxc3 {[%clk 0:02:19]} 25. Rb3 {[%clk 0:01:29]}  Ne4 {[%clk 0:02:16]} 26. Bxe4 {[%clk 0:01:28]}  dxe4 {[%clk 0:02:17]} 27. Nd2 {[%clk 0:01:27]}  Rc1+ {[%clk 0:02:13]} 28. Kh2 {[%clk 0:01:28]}  Rd1 {[%clk 0:02:14]} 29. Be3 {[%clk 0:01:28]}  Nc6 {[%clk 0:02:12]} 30. Rxb7 {[%clk 0:01:24]}  Nxe5 {[%clk 0:02:12]} 31. Nxe4 {[%clk 0:01:23]}  f5 {[%clk 0:02:09]} 32. Nc5 {[%clk 0:01:14]}  Ng4+ {[%clk 0:02:08]} 33. Kg3 {[%clk 0:01:11]}  Rd6 {[%clk 0:02:06]} 34. Rd7 {[%clk 0:01:05]}  Rc6 {[%clk 0:02:04]} 35. Bd4 {[%clk 0:01:01]}  g6 {[%clk 0:01:31]} 36. f3 {[%clk 0:00:56]}  Nf6 {[%clk 0:01:28]} 37. Bxf6 {[%clk 0:00:53]}  Rxf6 {[%clk 0:01:28]} 38. Kf4 {[%clk 0:00:46]}  Rc6 {[%clk 0:01:28]} 39. Nd3 {[%clk 0:00:47]}  Ra6 {[%clk 0:01:22]} 40. Ne5 {[%clk 0:00:45]}  Ra4+ {[%clk 0:01:21]} 41. Kg3 {[%clk 0:00:45]}  g5 {[%clk 0:01:19]} 42. h5 {[%clk 0:00:42]}  Rh4 {[%clk 0:01:16]} 43. Kf2 {[%clk 0:00:27]}  Rxh5 {[%clk 0:01:15]} 44. g4 {[%clk 0:00:28]}  fxg4 {[%clk 0:01:09]} 45. fxg4 {[%clk 0:00:29]}  Rh4 {[%clk 0:01:10]} 46. Ke3 {[%clk 0:00:28]}  h5 {[%clk 0:01:10]} 47. Ke4 {[%clk 0:00:24]}  hxg4 {[%clk 0:01:06]} 48. Kf5 {[%clk 0:00:24]}  g3 {[%clk 0:01:05]} 49. Kf6 {[%clk 0:00:23]}  Rf4+ {[%clk 0:00:54]} 50. Kg6 {[%clk 0:00:24]}  Kf8 {[%clk 0:00:41]} 51. Rd3 {[%clk 0:00:17]}  g2 {[%clk 0:00:33]} 52. Rg3 {[%clk 0:00:17]}  Rf2 {[%clk 0:00:33]} 53. Kxg5 {[%clk 0:00:16]}  Ke7 {[%clk 0:00:32]} 54. Kg4 {[%clk 0:00:15]}  Ra2 {[%clk 0:00:18]} 55. Ng6+ {[%clk 0:00:13]}  Kf6 {[%clk 0:00:18]} 56. Nf4 {[%clk 0:00:14]}  Ra8 {[%clk 0:00:16]} 57. Rxg2 {[%clk 0:00:05]}  Rg8+ {[%clk 0:00:15]} 58. Kf3 {[%clk 0:00:05]}  Rxg2 {[%clk 0:00:16]} 59. Nd5+ {[%clk 0:00:05]}  Ke5 {[%clk 0:00:16]} 60. Kxg2 {[%clk 0:00:06]} 1/2-1/2


[Site "https://www.chess.com"]

[Event "Titled Tuesday Blitz January 31 Late 2023"]
[White "Migot, Tangi"]
[Black "Santos Ruiz, Miguel"]
[WhiteFideId "662445"]
[BlackFideId "22291482"]
[WhiteElo "2373"]
[BlackElo "2590"]
[Result "0-1"]
[Round "07"]
[TimeControl "180+2"]
[Date "2023.01.31"]
[WhiteClock "0:01:38"]
[BlackClock "0:00:45"]

1. d4 {[%clk 0:03:00]}  Nf6 {[%clk 0:02:59]} 2. Nd2 {[%clk 0:03:01]}  d5 {[%clk 0:02:58]} 3. Ngf3 {[%clk 0:03:01]}  c5 {[%clk 0:02:59]} 4. dxc5 {[%clk 0:03:01]}  Nc6 {[%clk 0:02:59]} 5. Nb3 {[%clk 0:02:59]}  e5 {[%clk 0:02:59]} 6. Bg5 {[%clk 0:02:56]}  Bxc5 {[%clk 0:02:55]} 7. Bxf6 {[%clk 0:02:48]}  gxf6 {[%clk 0:02:54]} 8. Nxc5 {[%clk 0:02:48]}  Qa5+ {[%clk 0:02:54]} 9. Qd2 {[%clk 0:02:48]}  Qxc5 {[%clk 0:02:53]} 10. O-O-O {[%clk 0:02:48]}  Be6 {[%clk 0:02:53]} 11. e3 {[%clk 0:02:44]}  Ke7 {[%clk 0:02:53]} 12. Kb1 {[%clk 0:02:39]}  Rhc8 {[%clk 0:02:53]} 13. c3 {[%clk 0:02:34]}  a5 {[%clk 0:02:51]} 14. Nh4 {[%clk 0:02:31]}  b5 {[%clk 0:02:46]} 15. f4 {[%clk 0:02:29]}  b4 {[%clk 0:02:24]} 16. f5 {[%clk 0:02:25]}  bxc3 {[%clk 0:02:23]} 17. Qxc3 {[%clk 0:02:26]}  Qxc3 {[%clk 0:02:18]} 18. bxc3 {[%clk 0:02:26]}  Rab8+ {[%clk 0:02:19]} 19. Ka1 {[%clk 0:02:26]}  Bd7 {[%clk 0:02:16]} 20. Rxd5 {[%clk 0:02:26]}  Na7 {[%clk 0:01:45]} 21. c4 {[%clk 0:02:20]}  Nc6 {[%clk 0:01:38]} 22. Be2 {[%clk 0:02:15]}  Nb4 {[%clk 0:01:39]} 23. Rd2 {[%clk 0:02:15]}  Ba4 {[%clk 0:01:39]} 24. Rc1 {[%clk 0:02:11]}  Rd8 {[%clk 0:01:39]} 25. Rxd8 {[%clk 0:02:02]}  Rxd8 {[%clk 0:01:03]} 26. Nf3 {[%clk 0:02:01]}  Nc2+ {[%clk 0:01:03]} 27. Kb2 {[%clk 0:02:02]}  Nxe3 {[%clk 0:01:02]} 28. Rc3 {[%clk 0:01:56]}  Nxg2 {[%clk 0:00:58]} 29. Ra3 {[%clk 0:01:56]}  Bc6 {[%clk 0:00:52]} 30. Kc3 {[%clk 0:01:48]}  Nf4 {[%clk 0:00:52]} 31. Ng1 {[%clk 0:01:42]}  Rg8 {[%clk 0:00:51]} 32. Bf3 {[%clk 0:01:42]}  e4 {[%clk 0:00:48]} 33. Ne2 {[%clk 0:01:38]}  exf3 {[%clk 0:00:45]} 34. Nxf4 {[%clk 0:01:38]}  f2 {[%clk 0:00:45]} 0-1


[Site "https://www.chess.com"]

[Event "Titled Tuesday Blitz January 31 Late 2023"]
[White "Hambleton, Aman"]
[Black "Sztokbant, Bernardo Vainzoff"]
[WhiteFideId "2606577"]
[BlackFideId "2115956"]
[WhiteElo "2420"]
[BlackElo "2213"]
[Result "1-0"]
[Round "07"]
[TimeControl "180+2"]
[Date "2023.01.31"]
[WhiteClock "0:00:03"]
[BlackClock "0:00:03"]

1. d4 {[%clk 0:03:00]}  Nf6 {[%clk 0:02:59]} 2. Bf4 {[%clk 0:03:00]}  g6 {[%clk 0:02:58]} 3. Nc3 {[%clk 0:02:59]}  d5 {[%clk 0:02:58]} 4. e3 {[%clk 0:02:59]}  Bg7 {[%clk 0:02:58]} 5. h4 {[%clk 0:02:59]}  h5 {[%clk 0:02:54]} 6. Nf3 {[%clk 0:02:59]}  Bg4 {[%clk 0:02:51]} 7. Be2 {[%clk 0:03:00]}  Nbd7 {[%clk 0:02:51]} 8. Ne5 {[%clk 0:03:00]}  Bxe2 {[%clk 0:02:49]} 9. Qxe2 {[%clk 0:03:01]}  c6 {[%clk 0:02:46]} 10. O-O-O {[%clk 0:03:01]}  O-O {[%clk 0:02:45]} 11. f3 {[%clk 0:02:52]}  Nxe5 {[%clk 0:02:45]} 12. Bxe5 {[%clk 0:02:42]}  Nd7 {[%clk 0:02:38]} 13. Bxg7 {[%clk 0:02:39]}  Kxg7 {[%clk 0:02:38]} 14. e4 {[%clk 0:02:39]}  dxe4 {[%clk 0:02:37]} 15. fxe4 {[%clk 0:02:30]}  Nf6 {[%clk 0:02:38]} 16. Rhf1 {[%clk 0:02:14]}  Qd7 {[%clk 0:02:21]} 17. e5 {[%clk 0:02:10]}  Ng4 {[%clk 0:02:21]} 18. Ne4 {[%clk 0:01:45]}  b6 {[%clk 0:02:20]} 19. Ng5 {[%clk 0:01:36]}  e6 {[%clk 0:02:16]} 20. Ne4 {[%clk 0:00:38]}  Qe7 {[%clk 0:02:01]} 21. Nf6 {[%clk 0:00:36]}  Rh8 {[%clk 0:02:00]} 22. g3 {[%clk 0:00:34]}  Nh6 {[%clk 0:01:56]} 23. Qe3 {[%clk 0:00:17]}  Nf5 {[%clk 0:01:48]} 24. Qg5 {[%clk 0:00:16]}  Kf8 {[%clk 0:01:28]} 25. Rd3 {[%clk 0:00:08]}  Rd8 {[%clk 0:01:27]} 26. Rfd1 {[%clk 0:00:07]}  Kg7 {[%clk 0:01:12]} 27. a3 {[%clk 0:00:06]}  c5 {[%clk 0:00:43]} 28. dxc5 {[%clk 0:00:03]}  Rxd3 {[%clk 0:00:44]} 29. Rxd3 {[%clk 0:00:03]}  Qxc5 {[%clk 0:00:38]} 30. Qf4 {[%clk 0:00:02]}  Qg1+ {[%clk 0:00:36]} 31. Rd1 {[%clk 0:00:03]}  Qxg3 {[%clk 0:00:31]} 32. Qe4 {[%clk 0:00:02]}  Rc8 {[%clk 0:00:09]} 33. Kb1 {[%clk 0:00:02]}  Qxh4 {[%clk 0:00:05]} 34. Qb7 {[%clk 0:00:01]}  Qc4 {[%clk 0:00:06]} 35. c3 {[%clk 0:00:01]}  Rc7 {[%clk 0:00:05]} 36. Qxc7 {[%clk 0:00:01]}  Qxc7 {[%clk 0:00:03]} 37. Ne8+ {[%clk 0:00:01]}  Kh6 {[%clk 0:00:04]} 38. Nxc7 {[%clk 0:00:02]}  g5 {[%clk 0:00:02]} 39. Ne8 {[%clk 0:00:02]}  Kg6 {[%clk 0:00:03]} 40. Nd6 {[%clk 0:00:02]}  g4 {[%clk 0:00:03]} 41. Rf1 {[%clk 0:00:02]}  Ne3 {[%clk 0:00:03]} 42. Re1 {[%clk 0:00:01]}  Nf5 {[%clk 0:00:02]} 43. Rf1 {[%clk 0:00:02]}  Nxd6 {[%clk 0:00:02]} 44. exd6 {[%clk 0:00:02]}  g3 {[%clk 0:00:02]} 45. d7 {[%clk 0:00:03]}  g2 {[%clk 0:00:03]} 46. Rg1 {[%clk 0:00:03]} 1-0


[Site "https://www.chess.com"]

[Event "Titled Tuesday Blitz January 31 Late 2023"]
[White "Filgueira, Hernan"]
[Black "Jaracz, Pawel"]
[WhiteFideId "101770"]
[BlackFideId "1102222"]
[WhiteElo "2283"]
[BlackElo "2467"]
[Result "0-1"]
[Round "07"]
[TimeControl "180+2"]
[Date "2023.01.31"]
[WhiteClock "0:00:03"]
[BlackClock "0:00:39"]

1. e4 {[%clk 0:02:59]}  d6 {[%clk 0:02:58]} 2. d4 {[%clk 0:02:56]}  g6 {[%clk 0:02:58]} 3. Nc3 {[%clk 0:02:54]}  c6 {[%clk 0:02:58]} 4. a4 {[%clk 0:02:53]}  a5 {[%clk 0:02:57]} 5. Nf3 {[%clk 0:02:52]}  Bg4 {[%clk 0:02:56]} 6. Be2 {[%clk 0:02:52]}  Bg7 {[%clk 0:02:55]} 7. Be3 {[%clk 0:02:51]}  Nd7 {[%clk 0:02:55]} 8. Nd2 {[%clk 0:02:49]}  Bxe2 {[%clk 0:02:54]} 9. Qxe2 {[%clk 0:02:50]}  Ngf6 {[%clk 0:02:54]} 10. O-O {[%clk 0:02:49]}  O-O {[%clk 0:02:54]} 11. f4 {[%clk 0:02:49]}  Nb6 {[%clk 0:02:31]} 12. Rad1 {[%clk 0:02:38]}  e6 {[%clk 0:02:30]} 13. Kh1 {[%clk 0:02:29]}  d5 {[%clk 0:02:27]} 14. e5 {[%clk 0:02:23]}  Nfd7 {[%clk 0:02:27]} 15. Bg1 {[%clk 0:02:13]}  Qe7 {[%clk 0:02:26]} 16. g4 {[%clk 0:02:05]}  f6 {[%clk 0:02:21]} 17. h3 {[%clk 0:01:54]}  Rae8 {[%clk 0:02:13]} 18. Bh2 {[%clk 0:01:50]}  Qb4 {[%clk 0:02:12]} 19. Nf3 {[%clk 0:01:28]}  Qxb2 {[%clk 0:02:04]} 20. Rd3 {[%clk 0:01:19]}  Qb4 {[%clk 0:01:56]} 21. Rb1 {[%clk 0:01:12]}  Qc4 {[%clk 0:01:56]} 22. Nd2 {[%clk 0:01:08]}  Qa6 {[%clk 0:01:55]} 23. Qg2 {[%clk 0:01:05]}  fxe5 {[%clk 0:01:50]} 24. dxe5 {[%clk 0:01:03]}  Nc5 {[%clk 0:01:48]} 25. Rf3 {[%clk 0:01:02]}  Nc4 {[%clk 0:01:19]} 26. Nf1 {[%clk 0:01:00]}  Ne4 {[%clk 0:01:06]} 27. Nxe4 {[%clk 0:00:52]}  dxe4 {[%clk 0:01:06]} 28. Rfb3 {[%clk 0:00:49]}  Rf7 {[%clk 0:00:47]} 29. Qxe4 {[%clk 0:00:48]}  Nxe5 {[%clk 0:00:46]} 30. Nd2 {[%clk 0:00:16]}  Nd7 {[%clk 0:00:44]} 31. Nc4 {[%clk 0:00:15]}  Nc5 {[%clk 0:00:43]} 32. Qe2 {[%clk 0:00:04]}  Nxb3 {[%clk 0:00:43]} 33. cxb3 {[%clk 0:00:05]}  Rd7 {[%clk 0:00:40]} 34. Rd1 {[%clk 0:00:03]}  Rxd1+ {[%clk 0:00:38]} 35. Qxd1 {[%clk 0:00:03]}  b5 {[%clk 0:00:39]} 0-1


[Site "https://www.chess.com"]

[Event "Titled Tuesday Blitz January 31 Late 2023"]
[White "Hirneise, Jens"]
[Black "Averjanov, Alexey"]
[WhiteFideId "24614734"]
[BlackFideId "14109867"]
[WhiteElo "2277"]
[BlackElo "2399"]
[Result "0-1"]
[Round "07"]
[TimeControl "180+2"]
[Date "2023.01.31"]
[WhiteClock "0:00:12"]
[BlackClock "0:01:04"]

1. d4 {[%clk 0:03:00]}  d5 {[%clk 0:02:58]} 2. Nf3 {[%clk 0:02:59]}  Nf6 {[%clk 0:02:58]} 3. Bg5 {[%clk 0:02:57]}  Ne4 {[%clk 0:02:58]} 4. Bc1 {[%clk 0:02:51]}  c5 {[%clk 0:02:58]} 5. e3 {[%clk 0:02:50]}  Nc6 {[%clk 0:02:58]} 6. c3 {[%clk 0:02:50]}  Bf5 {[%clk 0:02:57]} 7. Nbd2 {[%clk 0:02:49]}  e6 {[%clk 0:02:57]} 8. Nxe4 {[%clk 0:02:42]}  Bxe4 {[%clk 0:02:58]} 9. Be2 {[%clk 0:02:42]}  Qb6 {[%clk 0:02:56]} 10. O-O {[%clk 0:02:41]}  Be7 {[%clk 0:02:56]} 11. dxc5 {[%clk 0:02:39]}  Bxc5 {[%clk 0:02:55]} 12. b4 {[%clk 0:02:39]}  Be7 {[%clk 0:02:55]} 13. a4 {[%clk 0:02:36]}  Bf6 {[%clk 0:02:52]} 14. a5 {[%clk 0:02:32]}  Qc7 {[%clk 0:02:52]} 15. Nd4 {[%clk 0:02:26]}  O-O {[%clk 0:02:52]} 16. Bb2 {[%clk 0:02:22]}  Ne5 {[%clk 0:02:50]} 17. Qb3 {[%clk 0:02:11]}  Rac8 {[%clk 0:02:49]} 18. b5 {[%clk 0:02:08]}  Nc4 {[%clk 0:02:46]} 19. b6 {[%clk 0:01:58]}  Qb8 {[%clk 0:02:37]} 20. bxa7 {[%clk 0:01:55]}  Qxa7 {[%clk 0:02:38]} 21. Bxc4 {[%clk 0:01:51]}  Rxc4 {[%clk 0:02:37]} 22. Qb6 {[%clk 0:01:49]}  Qxb6 {[%clk 0:02:29]} 23. axb6 {[%clk 0:01:49]}  Bd8 {[%clk 0:02:29]} 24. Ra7 {[%clk 0:01:41]}  Bxb6 {[%clk 0:02:28]} 25. Rxb7 {[%clk 0:01:41]}  Ba5 {[%clk 0:02:27]} 26. Rc1 {[%clk 0:01:37]}  Rfc8 {[%clk 0:02:27]} 27. Rb5 {[%clk 0:01:34]}  Bd8 {[%clk 0:02:22]} 28. Ra1 {[%clk 0:01:24]}  R4c7 {[%clk 0:02:20]} 29. Rba5 {[%clk 0:01:14]}  h6 {[%clk 0:02:19]} 30. Ra8 {[%clk 0:01:10]}  Bf6 {[%clk 0:02:17]} 31. Nb5 {[%clk 0:00:56]}  Rc5 {[%clk 0:02:10]} 32. Nd4 {[%clk 0:00:49]}  Kh7 {[%clk 0:02:07]} 33. h3 {[%clk 0:00:41]}  Bg6 {[%clk 0:02:06]} 34. R1a7 {[%clk 0:00:39]}  R5c7 {[%clk 0:02:04]} 35. Rxc7 {[%clk 0:00:34]}  Rxa8 {[%clk 0:02:03]} 36. Rb7 {[%clk 0:00:34]}  Ra2 {[%clk 0:02:01]} 37. f3 {[%clk 0:00:30]}  Bd3 {[%clk 0:01:54]} 38. Kf2 {[%clk 0:00:29]}  Kg6 {[%clk 0:01:53]} 39. g3 {[%clk 0:00:26]}  Bc4 {[%clk 0:01:49]} 40. h4 {[%clk 0:00:25]}  h5 {[%clk 0:01:49]} 41. Kg2 {[%clk 0:00:24]}  Bd8 {[%clk 0:01:45]} 42. Nc6 {[%clk 0:00:18]}  Bf6 {[%clk 0:01:43]} 43. Nd4 {[%clk 0:00:18]}  e5 {[%clk 0:01:39]} 44. Nc6 {[%clk 0:00:14]}  Kf5 {[%clk 0:01:33]} 45. Rb6 {[%clk 0:00:13]}  g5 {[%clk 0:01:24]} 46. hxg5 {[%clk 0:00:13]}  Bxg5 {[%clk 0:01:25]} 47. f4 {[%clk 0:00:13]}  exf4 {[%clk 0:01:21]} 48. Nd4+ {[%clk 0:00:13]}  Ke4 {[%clk 0:01:21]} 49. gxf4 {[%clk 0:00:13]}  Be7 {[%clk 0:01:18]} 50. Kg3 {[%clk 0:00:13]}  Bc5 {[%clk 0:01:14]} 51. Rb7 {[%clk 0:00:13]}  Kxe3 {[%clk 0:01:12]} 52. Nf5+ {[%clk 0:00:13]}  Kd3 {[%clk 0:01:10]} 53. Nh6 {[%clk 0:00:14]}  Kc2 {[%clk 0:01:09]} 54. Nxf7 {[%clk 0:00:12]}  Rxb2 {[%clk 0:01:09]} 55. Rc7 {[%clk 0:00:12]}  Bb6 {[%clk 0:01:04]} 0-1


[Site "https://www.chess.com"]

[Event "Titled Tuesday Blitz January 31 Late 2023"]
[White "Schekachikhin, Maksim"]
[Black "Cardoso Cardoso, Jose Gabriel"]
[WhiteFideId "24177830"]
[BlackFideId "4430492"]
[WhiteElo "2371"]
[BlackElo "2492"]
[Result "0-1"]
[Round "07"]
[TimeControl "180+2"]
[Date "2023.01.31"]
[WhiteClock "0:01:42"]
[BlackClock "0:02:00"]

1. b3 {[%clk 0:03:00]}  e5 {[%clk 0:02:56]} 2. Bb2 {[%clk 0:02:59]}  Nc6 {[%clk 0:02:55]} 3. c4 {[%clk 0:02:58]}  Nf6 {[%clk 0:02:55]} 4. Nf3 {[%clk 0:02:56]}  e4 {[%clk 0:02:53]} 5. Nd4 {[%clk 0:02:56]}  Bc5 {[%clk 0:02:50]} 6. Nf5 {[%clk 0:02:55]}  O-O {[%clk 0:02:47]} 7. e3 {[%clk 0:02:54]}  d5 {[%clk 0:02:45]} 8. cxd5 {[%clk 0:02:54]}  Qxd5 {[%clk 0:02:43]} 9. Ng3 {[%clk 0:02:53]}  Be7 {[%clk 0:02:40]} 10. Nc3 {[%clk 0:02:52]}  Qg5 {[%clk 0:02:35]} 11. Ncxe4 {[%clk 0:02:49]}  Nxe4 {[%clk 0:02:36]} 12. Nxe4 {[%clk 0:02:49]}  Qg6 {[%clk 0:02:36]} 13. d3 {[%clk 0:02:44]}  Bf5 {[%clk 0:02:28]} 14. Nc3 {[%clk 0:02:03]}  Rad8 {[%clk 0:02:23]} 15. e4 {[%clk 0:02:03]}  Bg4 {[%clk 0:02:18]} 16. Qc1 {[%clk 0:01:56]}  Nb4 {[%clk 0:02:10]} 17. a3 {[%clk 0:01:41]}  Nxd3+ {[%clk 0:02:01]} 18. Bxd3 {[%clk 0:01:41]}  Rxd3 {[%clk 0:02:02]} 19. Nd5 {[%clk 0:01:42]}  Qxe4+ {[%clk 0:02:00]} 0-1


[Site "https://www.chess.com"]

[Event "Titled Tuesday Blitz January 31 Late 2023"]
[White "Real_OceanStorm"]
[Black "Kleiman, Jake"]
[BlackFideId "2020041"]
[WhiteElo "2671"]
[BlackElo "2399"]
[Result "1-0"]
[Round "07"]
[TimeControl "180+2"]
[Date "2023.01.31"]
[WhiteClock "0:00:14"]
[BlackClock "0:00:17"]

1. Nf3 {[%clk 0:03:00]}  Nf6 {[%clk 0:02:52]} 2. b3 {[%clk 0:03:01]}  e6 {[%clk 0:02:52]} 3. Bb2 {[%clk 0:03:01]}  d5 {[%clk 0:02:51]} 4. g3 {[%clk 0:03:02]}  a5 {[%clk 0:02:51]} 5. Bg2 {[%clk 0:03:02]}  a4 {[%clk 0:02:51]} 6. O-O {[%clk 0:03:01]}  a3 {[%clk 0:02:52]} 7. Bc1 {[%clk 0:03:00]}  Be7 {[%clk 0:02:52]} 8. d4 {[%clk 0:03:00]}  O-O {[%clk 0:02:53]} 9. c4 {[%clk 0:03:01]}  b6 {[%clk 0:02:53]} 10. cxd5 {[%clk 0:03:01]}  exd5 {[%clk 0:02:53]} 11. Ne5 {[%clk 0:03:01]}  Re8 {[%clk 0:02:50]} 12. Nc3 {[%clk 0:03:01]}  Bb7 {[%clk 0:02:48]} 13. Bf4 {[%clk 0:03:01]}  Nc6 {[%clk 0:02:43]} 14. Nb5 {[%clk 0:02:39]}  Nb4 {[%clk 0:02:36]} 15. Nxf7 {[%clk 0:02:01]}  Kxf7 {[%clk 0:02:35]} 16. Nxc7 {[%clk 0:02:01]}  Qd7 {[%clk 0:02:25]} 17. Nxa8 {[%clk 0:02:01]}  Bxa8 {[%clk 0:02:20]} 18. Qd2 {[%clk 0:01:55]}  Kg8 {[%clk 0:02:11]} 19. e3 {[%clk 0:01:53]}  Ne4 {[%clk 0:02:07]} 20. Bxe4 {[%clk 0:01:53]}  dxe4 {[%clk 0:02:07]} 21. Be5 {[%clk 0:01:46]}  Nd3 {[%clk 0:02:04]} 22. f4 {[%clk 0:01:21]}  Bb4 {[%clk 0:01:45]} 23. Qe2 {[%clk 0:01:20]}  Bd5 {[%clk 0:01:37]} 24. f5 {[%clk 0:00:53]}  Bd6 {[%clk 0:01:21]} 25. Bxd6 {[%clk 0:00:52]}  Qxd6 {[%clk 0:01:22]} 26. f6 {[%clk 0:00:52]}  g6 {[%clk 0:01:01]} 27. Qg4 {[%clk 0:00:34]}  Bf7 {[%clk 0:00:53]} 28. Qg5 {[%clk 0:00:33]}  h5 {[%clk 0:00:44]} 29. Qh6 {[%clk 0:00:17]}  Qf8 {[%clk 0:00:43]} 30. Qg5 {[%clk 0:00:17]}  Kh7 {[%clk 0:00:44]} 31. g4 {[%clk 0:00:17]}  Qh6 {[%clk 0:00:39]} 32. Qxh6+ {[%clk 0:00:17]}  Kxh6 {[%clk 0:00:39]} 33. gxh5 {[%clk 0:00:18]}  gxh5 {[%clk 0:00:38]} 34. Rf5 {[%clk 0:00:17]}  Rg8+ {[%clk 0:00:32]} 35. Kf1 {[%clk 0:00:17]}  Rf8 {[%clk 0:00:24]} 36. Rb5 {[%clk 0:00:10]}  Be6 {[%clk 0:00:17]} 37. Kg1 {[%clk 0:00:10]}  Rxf6 {[%clk 0:00:15]} 38. h4 {[%clk 0:00:10]}  Rg6+ {[%clk 0:00:14]} 39. Rg5 {[%clk 0:00:07]}  Rxg5+ {[%clk 0:00:13]} 40. hxg5+ {[%clk 0:00:08]}  Kxg5 {[%clk 0:00:14]} 41. Kf1 {[%clk 0:00:08]}  h4 {[%clk 0:00:14]} 42. Kg2 {[%clk 0:00:09]}  Kg4 {[%clk 0:00:14]} 43. Rf1 {[%clk 0:00:08]}  h3+ {[%clk 0:00:14]} 44. Kh2 {[%clk 0:00:08]}  Kh4 {[%clk 0:00:13]} 45. Rf8 {[%clk 0:00:09]}  Bg4 {[%clk 0:00:13]} 46. Rh8+ {[%clk 0:00:09]}  Bh5 {[%clk 0:00:13]} 47. d5 {[%clk 0:00:09]}  Ne5 {[%clk 0:00:13]} 48. d6 {[%clk 0:00:09]}  Nf3+ {[%clk 0:00:12]} 49. Kh1 {[%clk 0:00:10]}  Ne5 {[%clk 0:00:12]} 50. Kh2 {[%clk 0:00:10]}  Ng4+ {[%clk 0:00:12]} 51. Kg1 {[%clk 0:00:10]}  Ne5 {[%clk 0:00:12]} 52. Rh7 {[%clk 0:00:10]}  Kg4 {[%clk 0:00:11]} 53. d7 {[%clk 0:00:11]}  Nxd7 {[%clk 0:00:10]} 54. Rxd7 {[%clk 0:00:10]}  Kg3 {[%clk 0:00:11]} 55. Rg7+ {[%clk 0:00:10]}  Bg4 {[%clk 0:00:12]} 56. Kh1 {[%clk 0:00:10]}  b5 {[%clk 0:00:12]} 57. Kg1 {[%clk 0:00:10]}  Kf3 {[%clk 0:00:12]} 58. Kh2 {[%clk 0:00:11]}  Bf5 {[%clk 0:00:11]} 59. Rf7 {[%clk 0:00:11]}  Kg4 {[%clk 0:00:12]} 60. Rf6 {[%clk 0:00:11]}  b4 {[%clk 0:00:12]} 61. Rf7 {[%clk 0:00:12]}  Be6 {[%clk 0:00:12]} 62. Rf4+ {[%clk 0:00:12]}  Kg5 {[%clk 0:00:12]} 63. Rxe4 {[%clk 0:00:12]}  Bxb3 {[%clk 0:00:12]} 64. axb3 {[%clk 0:00:10]}  a2 {[%clk 0:00:13]} 65. Re5+ {[%clk 0:00:10]}  Kg4 {[%clk 0:00:12]} 66. Ra5 {[%clk 0:00:11]}  Kf3 {[%clk 0:00:13]} 67. Rxa2 {[%clk 0:00:11]}  Kxe3 {[%clk 0:00:14]} 68. Ra4 {[%clk 0:00:12]}  Kd3 {[%clk 0:00:15]} 69. Rxb4 {[%clk 0:00:12]}  Kc3 {[%clk 0:00:16]} 70. Rh4 {[%clk 0:00:13]}  Kxb3 {[%clk 0:00:17]} 71. Rxh3+ {[%clk 0:00:14]} 1-0


[Site "https://www.chess.com"]